bitfinex/quotes_SOLUSD_20260304
["timestamp","ask_amount","ask_price","bid_price","bid_amount"]
[1772614586992,5.15022221,89.27,89.22,4.38533184]
[1772614587290,0.28432314,89.299,89.22,4.38533184]
[1772614587476,5.15022221,89.29,89.22,4.38533184]
[1772614587679,5.15022221,89.28,89.22,4.38533184]
[1772614587983,5.15022221,89.29,89.222,4.38533184]
[1772614588177,5.15022221,89.28,89.222,4.38533184]
[1772614588384,5.15022221,89.27,89.222,4.38533184]
[1772614588782,39.19680153,89.293,89.222,4.38533184]
[1772614588982,5.15022221,89.28,89.222,4.38533184]
[1772614589288,5.15022221,89.27,89.222,4.38533184]
[1772614589786,5.15022221,89.27,89.224,4.38533184]
[1772614590089,5.15022221,89.28,89.224,4.38533184]
[1772614590882,11.19933699,89.291,89.224,4.38533184]
[1772614591089,11.2008423,89.279,89.226,4.38533184]
[1772614592293,5.15022221,89.27,89.226,4.38533184]
[1772614592589,5.15022221,89.26,89.225,11.20762118]
[1772614593179,28.00210575,89.279,89.217,4.38533184]
[1772614593376,5.15022221,89.27,89.217,4.38533184]
[1772614593685,11.20096776,89.278,89.217,4.38533184]
[1772614594793,5.15022221,89.27,89.217,4.38533184]
[1772614595476,5.15022221,89.27,89.21,29.12636078]
[1772614595477,11.20096776,89.278,89.219,4.38533184]
[1772614596094,5.15022221,89.3,89.222,4.66965498]
[1772614596395,5.15022221,89.29,89.222,4.38533184]
[1772614596691,5.15022221,89.3,89.226,4.38533184]
[1772614597589,11.19737124,89.307,89.235,0.28432314]
[1772614597796,11.19582619,89.319,89.236,4.38533184]
[1772614597992,30.64982413,89.475,89.244,4.38533184]
[1772614597993,11.19043888,89.362,89.244,4.38533184]
[1772614598292,11.19043888,89.362,89.237,0.28432314]
[1772614598293,5.15022221,89.36,89.272,4.38533184]
[1772614598484,11.19043888,89.362,89.276,4.38533184]
[1772614598485,5.15022221,89.35,89.276,4.38533184]
[1772614598996,39.1665361,89.362,89.276,4.38533184]
[1772614599200,5.15022221,89.34,89.276,4.38533184]
[1772614599392,5.15022221,89.35,89.276,4.38533184]
[1772614599587,11.19206706,89.349,89.278,4.38533184]
[1772614600190,16.3410012,89.36,89.281,4.66965498]
[1772614600378,5.15022221,89.36,89.281,4.66965498]
[1772614600579,5.15022221,89.35,89.281,4.66965498]
[1772614601099,5.15022221,89.36,89.281,4.66965498]
[1772614601296,5.15022221,89.35,89.281,4.38533184]
[1772614601494,5.15022221,89.35,89.282,39.20163077]
[1772614601683,5.15022221,89.35,89.283,4.38533184]
[1772614601880,0.28432314,89.394,89.288,3.69383402]
[1772614602078,39.15207784,89.395,89.303,4.38533184]
[1772614602284,5.15022221,89.38,89.305,4.38533184]
[1772614602799,5.15022221,89.37,89.305,4.38533184]
[1772614603300,5.15022221,89.38,89.305,4.38533184]
[1772614603488,11.18831045,89.379,89.306,39.19109577]
[1772614603793,11.18831045,89.379,89.307,4.38533184]
[1772614604289,5.15022221,89.37,89.307,4.38533184]
[1772614604794,5.15022221,89.39,89.315,4.38533184]
[1772614604997,5.15022221,89.38,89.315,4.38533184]
[1772614605198,5.15022221,89.39,89.315,4.38533184]
[1772614605798,11.18705881,89.389,89.317,4.38533184]
[1772614605997,5.15022221,89.39,89.317,4.38533184]
[1772614606181,5.15022221,89.4,89.325,4.10537886]
[1772614606598,5.15022221,89.39,89.325,4.10537886]
[1772614606796,5.15022221,89.39,89.319,3.69383402]
[1772614606797,5.15022221,89.4,89.326,0.28432314]
[1772614607096,5.15022221,89.42,89.345,4.10537886]
[1772614607296,5.15022221,89.42,89.336,0.28432314]
[1772614607297,0.0709944,89.429,89.353,4.10537886]
[1772614607502,163.4,89.464,89.35,3.69383402]
[1772614607503,5.15022221,89.44,89.365,4.10537886]
[1772614607678,0.1,89.47,89.382,0.28432314]
[1772614607679,5.21414584,89.46,89.382,0.28432314]
[1772614607881,16.3923449,89.46,89.385,4.10537886]
[1772614608788,5.21414584,89.46,89.395,4.10537886]
[1772614609200,16.42717802,89.47,89.395,4.10537886]
[1772614609419,5.15022221,89.46,89.395,4.10537886]
[1772614609604,5.15022221,89.45,89.395,4.10537886]
[1772614609788,16.32968437,89.45,89.397,4.10537886]
[1772614609986,5.15022221,89.43,89.397,4.10537886]
[1772614610186,0.1,89.47,89.397,4.10537886]
[1772614610187,11.17880027,89.456,89.397,4.10537886]
[1772614611190,5.15022221,89.45,89.397,4.10537886]
[1772614611385,5.15022221,89.44,89.397,4.10537886]
[1772614611627,39.12550032,89.456,89.391,11.18679842]
[1772614611628,5.15022221,89.43,89.391,11.18679842]
[1772614611913,5.15022221,89.42,89.359,4.10537886]
[1772614612207,0.0297695,89.419,89.359,4.10537886]
[1772614612388,5.15022221,89.43,89.359,4.10537886]
[1772614612703,11.18167993,89.432,89.365,4.10537886]
[1772614613011,5.15022221,89.4,89.359,4.10537886]
[1772614613509,5.15022221,89.39,89.351,11.19179586]
[1772614613707,5.15022221,89.39,89.351,15.29717472]
[1772614614007,5.15022221,89.39,89.352,4.10537886]
[1772614614213,11.18632974,89.395,89.352,4.10537886]
[1772614614624,5.15022221,89.39,89.352,4.10537886]
[1772614614914,5.15022221,89.39,89.341,39.17574237]
[1772614615092,5.15022221,89.39,89.342,4.10537886]
[1772614615486,5.15022221,89.39,89.342,3.54558486]
[1772614615691,0.56362564,89.399,89.342,3.54558486]
[1772614615904,0.56362564,89.389,89.343,11.19281868]
[1772614616309,0.56362564,89.389,89.343,39.17486539]
[1772614617314,0.5573263,89.379,89.336,11.19362883]
[1772614617916,5.15022221,89.36,89.314,3.99550052]
[1772614618132,11.18843563,89.378,89.316,3.99550052]
[1772614618423,0.55109931,89.404,89.326,3.99550052]
[1772614618619,5.15022221,89.4,89.326,3.99550052]
[1772614618802,0.55109931,89.404,89.326,3.99550052]
[1772614619142,11.18363177,89.417,89.333,0.28432314]
[1772614619326,11.18363177,89.417,89.336,3.99550052]
[1772614619616,0.53885909,89.416,89.344,3.99550052]
[1772614619820,0.53885909,89.416,89.356,3.99550052]
[1772614620320,11.18343601,89.418,89.356,3.99550052]
[1772614620621,11.18268232,89.424,89.356,3.99550052]
[1772614621015,5.15022221,89.42,89.356,3.99550052]
[1772614621318,5.15022221,89.41,89.356,3.99550052]
[1772614621629,0.5339248,89.419,89.356,3.99550052]
[1772614621928,5.15022221,89.41,89.358,3.99550052]
[1772614622107,0.52904719,89.409,89.358,3.99550052]
[1772614622306,0.52904719,89.409,89.31,11.75336475]
[1772614622307,0.52904719,89.379,89.324,3.99550052]
[1772614622509,5.15022221,89.36,89.325,11.19507416]
[1772614622709,0.52904719,89.369,89.325,39.18275957]
[1772614622908,0.5242256,89.382,89.326,3.99550052]
[1772614623123,5.15022221,89.38,89.326,3.99550052]
[1772614623707,0.5194594,89.379,89.326,3.99550052]
[1772614623918,11.18956237,89.369,89.327,11.19482351]
[1772614624108,11.18956237,89.369,89.327,39.18188229]
[1772614624307,0.5194594,89.379,89.328,3.99550052]
[1772614624619,11.70786201,89.379,89.328,3.99550052]
[1772614625319,0.51474793,89.378,89.328,3.99550052]
[1772614625821,5.15022221,89.37,89.328,3.99550052]
[1772614626131,5.15022221,89.38,89.33,3.99550052]
[1772614626646,11.18718396,89.388,89.33,3.99550052]
[1772614626809,0.50548674,89.399,89.33,3.99550052]
[1772614627215,5.15022221,89.38,89.329,39.18100504]
[1772614627415,0.50548674,89.379,89.33,3.99550052]
[1772614627609,5.15022221,89.37,89.33,3.99550052]
[1772614627926,11.19081457,89.359,89.317,27.98993908]
[1772614628302,0.50093576,89.358,89.313,11.19657832]
[1772614628621,5.15022221,89.35,89.313,11.19657832]
[1772614629207,11.19081457,89.359,89.285,3.99550052]
[1772614629208,5.15022221,89.33,89.285,3.99550052]
[1772614629621,5.15022221,89.33,89.28,28.00157544]
[1772614629622,5.15022221,89.31,89.27,11.2019255]
[1772614629827,0.49199003,89.319,89.27,11.2019255]
[1772614630122,11.19595154,89.318,89.271,3.99550052]
[1772614630325,0.49199003,89.317,89.271,3.99550052]
[1772614630505,5.15022221,89.31,89.271,3.99550052]
[1772614630903,0.48759408,89.309,89.262,11.20297551]
[1772614631129,0.48759408,89.309,89.263,3.99550052]
[1772614631306,11.19595154,89.318,89.263,3.99550052]
[1772614631726,0.48759408,89.332,89.264,0.28432314]
[1772614631905,11.67556622,89.347,89.267,3.99550052]
[1772614632113,0.48324863,89.346,89.267,3.99550052]
[1772614632513,5.15022221,89.34,89.267,3.99550052]
[1772614633214,0.47895308,89.319,89.267,3.99550052]
[1772614633410,0.47470687,89.332,89.267,3.99550052]
[1772614633722,5.15022221,89.33,89.267,3.99550052]
[1772614633920,0.47470687,89.329,89.267,3.99550052]
[1772614634224,11.19469819,89.328,89.269,3.99550052]
[1772614634427,5.15022221,89.35,89.269,3.99550052]
[1772614634613,5.62736258,89.35,89.269,3.99550052]
[1772614634818,0.47050944,89.349,89.269,3.99550052]
[1772614635210,5.15685314,89.34,89.269,3.99550052]
[1772614635808,0.46636021,89.347,89.271,3.99550052]
[1772614636135,0.46636021,89.347,89.27,39.2069004]
[1772614636136,11.19164976,89.353,89.276,0.14216157]
[1772614636313,11.19164976,89.353,89.285,3.99550052]
[1772614636516,11.18968758,89.368,89.289,3.99550052]
[1772614636735,11.18878495,89.376,89.305,3.99550052]
[1772614637033,0.46225865,89.392,89.311,3.99550052]
[1772614637034,11.18705881,89.389,89.311,3.99550052]
[1772614637334,11.18705881,89.389,89.294,4.82477569]
[1772614637335,11.18705881,89.389,89.315,3.99550052]
[1772614637646,0.45820419,89.388,89.315,3.99550052]
[1772614637810,0.45820419,89.386,89.317,3.99550052]
[1772614638239,11.18730911,89.387,89.317,3.99550052]
[1772614638426,27.96513087,89.398,89.317,3.99550052]
[1772614638427,11.64025399,89.397,89.317,3.99550052]
[1772614638624,11.64025399,89.397,89.325,3.89902805]
[1772614638818,0.45023445,89.396,89.325,3.89902805]
[1772614639714,0.44631811,89.379,89.325,3.89902805]
[1772614639918,5.15685314,89.37,89.326,11.19494883]
[1772614640234,0.44631811,89.377,89.326,11.19494883]
[1772614640235,0.44631811,89.377,89.327,3.89902805]
[1772614640448,11.18593257,89.398,89.327,3.89902805]
[1772614640812,0.44244674,89.397,89.327,3.89902805]
[1772614641244,0.43861985,89.379,89.327,3.89902805]
[1772614642038,11.18843563,89.378,89.329,3.82548186]
[1772614642734,10.74584348,89.378,89.329,3.82548186]
[1772614643144,0.43109742,89.459,89.329,3.82548186]
[1772614643363,0.43109742,89.443,89.344,12.34409157]
[1772614643649,5.58425402,89.43,89.358,3.82548186]
[1772614643813,0.42740088,89.429,89.358,3.82548186]
[1772614644018,0.42740088,89.427,89.36,3.82548186]
[1772614644219,0.42740088,89.468,89.373,0.14216157]
[1772614644418,0.42740088,89.439,89.376,3.82548186]
[1772614645225,5.15685314,89.45,89.376,3.82548186]
[1772614645635,39.11969507,89.469,89.376,3.82548186]
[1772614645636,5.15685314,89.44,89.376,3.82548186]
[1772614646036,5.15685314,89.44,89.378,3.82548186]
[1772614646221,16.33765058,89.44,89.378,3.82548186]
[1772614646423,0.42013469,89.439,89.378,3.82548186]
[1772614647050,11.1800871,89.445,89.378,3.82548186]
[1772614648331,5.15685314,89.44,89.38,3.82548186]
[1772614648738,5.15685314,89.43,89.38,3.82548186]
[1772614649123,5.56639853,89.44,89.38,3.82548186]
[1772614649654,0.4060964,89.439,89.38,3.82548186]
[1772614650230,11.1809298,89.438,89.382,3.82548186]
[1772614650824,0.40268702,89.419,89.381,11.1880601]
[1772614651031,5.15685314,89.39,89.337,3.82548186]
[1772614651242,0.40268702,89.409,89.337,3.82548186]
[1772614651745,5.15685314,89.4,89.337,3.82548186]
[1772614652147,5.15685314,89.39,89.337,3.82548186]
[1772614652350,5.15685314,89.37,89.325,11.19507416]
[1772614652656,31.04958777,89.647,89.387,3.69383402]
[1772614652867,6.84827907,89.646,89.388,9.6373281]
[1772614653087,24.81669046,89.759,89.508,4.82477569]
[1772614653381,7.95692033,89.78,89.66,3.69383402]
[1772614653561,6.98988285,89.779,89.664,3.69383402]
[1772614653871,7.27073101,89.845,89.669,4.82477569]
[1772614654074,4.02514026,89.878,89.786,3.69383402]
[1772614654278,11.12025443,89.926,89.834,3.69291933]
[1772614654479,22.52,90.0,89.83,38.96248468]
[1772614654480,27.79305273,89.951,89.839,3.69291933]
[1772614654657,20.59342002,89.927,89.84,6.97540566]
[1772614654862,48.39374695,89.927,89.841,2.94540911]
[1772614655078,48.39374695,89.927,89.832,11.69106297]
[1772614655276,144.44604937,89.999,89.837,3.88752054]
[1772614655480,27.78240817,89.985,89.837,3.88752054]
[1772614655862,8.57311258,89.95,89.837,3.88752054]
[1772614656176,0.32825397,89.984,89.837,3.88752054]
[1772614656477,0.32825397,89.984,89.806,3.69383402]
[1772614656478,0.32825397,89.936,89.82,3.88752054]
[1772614656890,216.71241705,89.981,89.821,4.05164753]
[1772614656891,8.57311258,89.98,89.821,4.05164753]
[1772614657093,8.57311258,89.96,89.826,4.05164753]
[1772614657291,183.37204519,89.981,89.828,4.05164753]
[1772614657292,227.82587433,89.981,89.828,4.05164753]
[1772614657479,227.82587433,89.981,89.837,4.82477569]
[1772614657674,12.19155854,89.981,89.859,4.05164753]
[1772614657875,84.42903089,89.981,89.865,4.05164753]
[1772614658081,8.57311258,89.96,89.827,4.05164753]
[1772614658376,3.69383402,89.978,89.827,4.05164753]
[1772614658678,3.69383402,89.912,89.76,4.05164753]
[1772614658992,0.1959947,89.909,89.763,4.05164753]
[1772614659490,0.27791556,89.969,89.78,4.82477569]
[1772614659878,0.27791556,89.919,89.785,4.82477569]
[1772614660197,0.27791556,89.919,89.779,3.69383402]
[1772614660198,0.27791556,89.879,89.704,11.69106297]
[1772614660385,38.94167649,89.878,89.744,15.97148598]
[1772614660586,0.35885133,89.877,89.682,11.69106297]
[1772614660776,0.35885133,89.877,89.681,11.69106297]
[1772614660972,0.35885133,89.877,89.762,3.69383402]
[1772614661174,3.72367985,89.819,89.651,1.11543652]
[1772614661379,8.57311258,89.8,89.661,52.7]
[1772614661579,3.72367985,89.819,89.661,52.7]
[1772614661786,3.72367985,89.819,89.662,17.08678566]
[1772614661989,8.57311258,89.8,89.662,17.08678566]
[1772614662194,3.72367985,89.809,89.662,17.08678566]
[1772614662494,8.57311258,89.86,89.667,4.82477569]
[1772614662686,8.57311258,89.84,89.671,8.51860971]
[1772614662883,3.72367985,89.829,89.676,4.82477569]
[1772614663087,3.72367985,89.819,89.677,17.0865991]
[1772614663397,8.57311258,89.79,89.678,3.69291933]
[1772614663600,3.72367985,89.789,89.678,3.69291933]
[1772614664098,3.72367985,89.809,89.68,3.69291933]
[1772614664298,3.72367985,89.797,89.688,3.69291933]
[1772614664603,3.72367985,89.719,89.652,3.69291933]
[1772614664897,3.72367985,89.749,89.652,3.69291933]
[1772614665795,3.72367985,89.766,89.672,3.69291933]
[1772614666098,3.72367985,89.749,89.68,3.69291933]
[1772614666280,38.99808351,89.748,89.683,3.69291933]
[1772614666481,3.72367985,89.861,89.685,8.51769502]
[1772614666676,3.72367985,89.819,89.707,5.10909883]
[1772614666880,3.72367985,89.819,89.678,50.16]
[1772614666881,3.72367985,89.809,89.728,3.97724247]
[1772614667082,3.72367985,89.809,89.739,4.82477569]
[1772614667289,3.72367985,89.809,89.744,4.82477569]
[1772614667489,3.72367985,89.809,89.747,3.69291933]
[1772614667689,3.72367985,89.809,89.748,4.82477569]
[1772614667890,3.72367985,89.843,89.765,3.69291933]
[1772614668102,44.50609618,89.876,89.779,4.44100398]
[1772614668103,3.72367985,89.839,89.779,4.44100398]
[1772614668289,38.95901511,89.838,89.782,4.44100398]
[1772614668484,38.95901511,89.838,89.784,4.44100398]
[1772614668992,4.49003468,89.837,89.685,5.10909883]
[1772614669303,8.79647522,89.838,89.729,4.44100398]
[1772614669504,8.79647522,89.838,89.722,0.14216157]
[1772614669505,8.79647522,89.838,89.751,4.82477569]
[1772614669819,8.79647522,89.838,89.778,0.14216157]
[1772614670018,4.49003468,89.837,89.768,4.44100398]
[1772614670183,4.49003468,89.809,89.699,4.44100398]
[1772614670379,38.97593513,89.799,89.731,9.26577967]
[1772614670604,38.97593513,89.799,89.744,4.44100398]
[1772614670908,38.97593513,89.799,89.7,1.1148272]
[1772614670909,38.97202921,89.808,89.705,4.44100398]
[1772614671087,38.97202921,89.808,89.719,9.26577967]
[1772614671288,38.97202921,89.808,89.748,4.44100398]
[1772614671517,55.65080724,89.846,89.767,4.82477569]
[1772614671518,11.13384985,89.817,89.767,4.82477569]
[1772614671805,4.49003468,89.809,89.714,4.44100398]
[1772614672003,11.13384985,89.817,89.724,4.44100398]
[1772614672004,4.49003468,89.789,89.724,4.44100398]
[1772614672389,11.13734574,89.788,89.729,4.44100398]
[1772614672590,38.9807101,89.788,89.689,4.44100398]
[1772614672788,38.9807101,89.788,89.709,4.44100398]
[1772614672987,27.83835827,89.805,89.728,4.82477569]
[1772614673207,27.83835827,89.805,89.748,4.82477569]
[1772614673595,4.49003468,89.789,89.732,5.10909883]
[1772614673807,4.49003468,89.779,89.712,4.82477569]
[1772614674005,4.49003468,89.779,89.718,4.82477569]
[1772614674202,4.49003468,89.779,89.72,3.69383402]
[1772614674406,11.13858629,89.778,89.73,4.44100398]
[1772614674590,38.98505201,89.778,89.73,4.44100398]
[1772614674785,11.13858629,89.778,89.73,4.44100398]
[1772614675001,4.49003468,89.777,89.717,4.82477569]
[1772614675207,4.49003468,89.769,89.717,4.82477569]
[1772614675421,4.49003468,89.769,89.713,4.44100398]
[1772614675422,4.49003468,89.769,89.714,4.96693726]
[1772614675607,4.49003468,89.769,89.717,4.96693726]
[1772614675788,11.13858629,89.778,89.734,4.44100398]
[1772614675994,11.13858629,89.778,89.735,4.82477569]
[1772614676395,4.49003468,89.778,89.718,4.44100398]
[1772614676598,4.49003468,89.778,89.722,4.44100398]
[1772614676993,4.49003468,89.778,89.708,4.96693726]
[1772614677206,4.49003468,89.769,89.708,4.82477569]
[1772614677611,11.13734574,89.788,89.702,4.44100398]
[1772614677803,261.30854422,89.932,89.772,4.44100398]
[1772614678108,8.57311258,89.91,89.78,4.44100398]
[1772614678288,4.49003468,89.839,89.781,5.10909883]
[1772614678493,8.57311258,89.83,89.781,4.82477569]
[1772614678693,8.57311258,89.83,89.632,11.69106297]
[1772614678694,4.49003468,89.829,89.774,9.55010281]
[1772614678900,38.95901511,89.838,89.706,1.11475263]
[1772614678901,11.13114717,89.838,89.785,5.10909883]
[1772614679115,38.95901511,89.838,89.792,4.44100398]
[1772614679605,38.95901511,89.838,89.793,4.82477569]
[1772614680112,11.13114717,89.838,89.799,4.82477569]
[1772614680327,23.35420141,89.854,89.8,4.82477569]
[1772614680616,4.49003468,89.908,89.83,5.10909883]
[1772614680793,4.49003468,89.908,89.843,4.44100398]
[1772614680994,4.49003468,89.908,89.827,4.44100398]
[1772614681192,4.49003468,89.908,89.842,4.82477569]
[1772614681420,13.06314726,89.9,89.842,4.82477569]
[1772614681607,4.49003468,89.899,89.839,3.35562386]
[1772614681811,4.49003468,89.889,89.798,0.28432314]
[1772614681994,4.49003468,89.899,89.805,3.69383402]
[1772614682194,4.49003468,89.879,89.797,1.11362294]
[1772614682404,216.8136181,89.939,89.794,50.12]
[1772614682405,4.49003468,89.894,89.798,8.80293285]
[1772614682611,11.12433671,89.893,89.798,8.80293285]
[1772614682808,11.12433671,89.893,89.824,5.10909883]
[1772614683008,11.12433671,89.893,89.823,3.69383402]
[1772614683009,4.49003468,89.889,89.82,0.28432314]
[1772614683217,4.49003468,89.889,89.825,0.28432314]
[1772614683417,8.57311258,89.85,89.818,4.82477569]
[1772614683607,8.57311258,89.85,89.797,4.82477569]
[1772614683805,4.49003468,89.859,89.799,4.44100398]
[1772614684017,8.57311258,89.86,89.799,4.44100398]
[1772614684214,8.57311258,89.86,89.803,4.44100398]
[1772614684407,8.57311258,89.87,89.811,4.44100398]
[1772614684727,38.94557633,89.869,89.816,4.82477569]
[1772614684901,38.94557633,89.869,89.82,4.82477569]
[1772614685100,8.57311258,89.86,89.82,4.82477569]
[1772614685309,8.57311258,89.85,89.805,11.41948317]
[1772614685518,8.57311258,89.86,89.813,4.82477569]
[1772614685710,38.94557633,89.869,89.816,4.44100398]
[1772614686033,38.94557633,89.869,89.806,11.13511346]
[1772614686034,38.94557633,89.869,89.821,4.82477569]
[1772614686211,11.12730752,89.869,89.83,4.44100398]
[1772614686525,11.12730752,89.869,89.823,4.82477569]
[1772614686726,38.94557633,89.869,89.82,4.82477569]
[1772614687222,38.94557633,89.869,89.82,4.44100398]
[1772614687725,8.57311258,89.86,89.82,4.44100398]
[1772614687915,0.28432314,89.858,89.754,4.44100398]
[1772614688126,8.57311258,89.83,89.754,4.44100398]
[1772614688414,1.52826093,89.851,89.765,4.44100398]
[1772614688626,8.57311258,89.84,89.786,0.14216157]
[1772614688926,8.57311258,89.84,89.787,4.44100398]
[1772614689222,8.57311258,89.84,89.788,4.82477569]
[1772614689415,1.52826093,89.848,89.788,4.82477569]
[1772614689725,8.57311258,89.83,89.788,4.82477569]
[1772614690036,1.52826093,89.848,89.78,4.44100398]
[1772614690406,8.57311258,89.84,89.78,4.44100398]
[1772614690714,40.48684238,89.839,89.78,4.44100398]
[1772614691021,8.57311258,89.82,89.761,4.82477569]
[1772614691220,8.57311258,89.78,89.731,4.44100398]
[1772614691925,1.52826093,89.779,89.714,4.44100398]
[1772614692222,1.52826093,89.779,89.716,4.44100398]
[1772614692441,8.57311258,89.77,89.716,4.44100398]
[1772614692617,38.98896054,89.769,89.716,4.44100398]
[1772614693212,38.98896054,89.769,89.73,4.64100398]
[1772614693807,38.98896054,89.769,89.73,0.2]
[1772614694014,8.57311258,89.76,89.715,4.44100398]
[1772614694427,8.57311258,89.75,89.715,4.44100398]
[1772614694614,11.14218542,89.749,89.715,4.44100398]
[1772614695012,8.57311258,89.76,89.694,27.87232916]
[1772614695013,8.57311258,89.76,89.721,4.44100398]
[1772614695333,8.57311258,89.77,89.723,4.44100398]
[1772614695531,38.98505201,89.778,89.724,14.46757882]
[1772614695832,8.57311258,89.77,89.725,14.46757882]
[1772614696134,8.57311258,89.77,89.723,4.44100398]
[1772614696135,11.13672557,89.793,89.741,4.44100398]
[1772614696321,11.13672557,89.793,89.752,8.27423667]
[1772614696629,1.52826093,89.836,89.758,4.44100398]
[1772614696934,1.52826093,89.836,89.753,14.46757882]
[1772614696935,1.52826093,89.836,89.78,4.44100398]
[1772614697136,11.13127107,89.837,89.783,4.44100398]
[1772614697314,55.6210648,89.894,89.822,8.69054846]
[1772614697519,8.59720581,89.85,89.797,11.49048306]
[1772614697719,8.59720581,89.85,89.793,4.44100398]
[1772614698013,3.69383402,89.888,89.793,4.44100398]
[1772614698212,8.59720581,89.84,89.796,11.49048306]
[1772614698724,11.13102327,89.839,89.795,4.49228151]
[1772614698915,8.59720581,89.83,89.782,4.49228151]
[1772614699118,38.95858145,89.839,89.782,11.49048306]
[1772614699319,8.59720581,89.83,89.783,4.49228151]
[1772614699635,38.95858145,89.839,89.784,4.49228151]
[1772614699947,11.13102327,89.839,89.8,4.49228151]
[1772614700130,11.13102327,89.839,89.802,4.49228151]
[1772614700847,27.82676047,89.842,89.802,4.49228151]
[1772614701013,163.4,89.884,89.811,4.49228151]
[1772614701014,8.59720581,89.87,89.811,4.49228151]
[1772614701210,8.59720581,89.85,89.811,4.49228151]
[1772614701431,8.59720581,89.85,89.79,27.84246342]
[1772614701432,8.59720581,89.84,89.794,4.49228151]
[1772614701729,8.59720581,89.81,89.768,11.49048306]
[1772614701936,8.59720581,89.81,89.706,22.03938411]
[1772614701937,4.41951261,89.853,89.736,11.14379958]
[1772614702243,8.59720581,89.77,89.72,11.49048306]
[1772614702450,8.59720581,89.76,89.712,11.49048306]
[1772614702623,8.59720581,89.77,89.715,11.14640066]
[1772614702818,11.13970301,89.769,89.715,11.14640066]
[1772614703228,8.59720581,89.76,89.716,4.82477569]
[1772614703624,38.98896054,89.769,89.716,4.82477569]
[1772614703818,8.59720581,89.76,89.716,4.82477569]
[1772614704025,8.59720581,89.76,89.715,11.14640066]
[1772614704635,8.59720581,89.75,89.715,11.14640066]
[1772614704931,38.99764899,89.749,89.697,4.26583956]
[1772614705120,38.99764899,89.749,89.698,4.26583956]
[1772614705319,11.14218542,89.749,89.702,4.26583956]
[1772614705516,3.69383402,89.814,89.714,4.45589706]
[1772614705733,3.69383402,89.814,89.697,39.02025708]
[1772614705734,8.59720581,89.77,89.718,4.45589706]
[1772614705935,8.59720581,89.76,89.718,4.45589706]
[1772614706136,8.59720581,89.77,89.718,4.45589706]
[1772614706446,8.59720581,89.76,89.72,4.45589706]
[1772614706642,3.69383402,89.814,89.7,4.45589706]
[1772614706643,8.59720581,89.75,89.7,4.45589706]
[1772614706823,38.99764899,89.749,89.702,4.45589706]
[1772614707218,11.14218542,89.749,89.702,4.45589706]
[1772614707419,27.85184436,89.761,89.706,4.45589706]
[1772614707725,163.4,89.793,89.701,39.01851706]
[1772614707726,11.13610548,89.798,89.725,4.45589706]
[1772614707925,11.13610548,89.798,89.704,3.69383402]
[1772614707926,8.59720581,89.8,89.738,4.45589706]
[1772614708630,11.1354316,89.804,89.749,4.82477569]
[1772614708821,0.08732382,89.815,89.739,0.28432314]
[1772614708822,8.59720581,89.8,89.754,4.45589706]
[1772614709029,8.59720581,89.79,89.754,4.45589706]
[1772614709426,8.59720581,89.79,89.755,14.76814691]
[1772614709743,8.59720581,89.8,89.757,4.45589706]
[1772614709939,8.59720581,89.8,89.758,14.76814691]
[1772614710251,11.1347415,89.809,89.76,4.45589706]
[1772614710426,11.1347415,89.809,89.762,4.45589706]
[1772614710624,11.1347415,89.809,89.764,4.45589706]
[1772614710835,11.1347415,89.809,89.766,4.45589706]
[1772614711049,11.1347415,89.809,89.768,4.45589706]
[1772614711346,11.1347415,89.809,89.769,14.76814691]
[1772614711527,11.1347415,89.809,89.77,14.76814691]
[1772614711736,8.40401129,89.82,89.771,25.90748037]
[1772614711938,8.40401129,89.81,89.772,14.76814691]
[1772614712239,8.40401129,89.81,89.773,14.76814691]
[1772614712428,8.40401129,89.82,89.774,14.76814691]
[1772614712630,38.95771418,89.841,89.776,4.45589706]
[1772614712631,8.40401129,89.83,89.776,4.45589706]
[1772614712839,8.40401129,89.83,89.778,4.45589706]
[1772614713043,0.08732382,89.829,89.779,14.76814691]
[1772614713251,38.95771418,89.841,89.761,4.45589706]
[1772614713252,0.08732382,89.816,89.761,4.45589706]
[1772614713436,8.40401129,89.8,89.761,4.45589706]
[1772614713752,38.97159526,89.809,89.761,4.45589706]
[1772614714446,8.40401129,89.8,89.749,4.45589706]
[1772614715838,8.40401129,89.8,89.751,4.45589706]
[1772614715839,38.97593513,89.799,89.751,4.45589706]
[1772614717354,8.40401129,89.79,89.742,11.14301552]
[1772614717652,38.97593513,89.799,89.717,4.45589706]
[1772614717653,8.40401129,89.77,89.717,4.45589706]
[1772614718042,8.40401129,89.76,89.718,4.45589706]
[1772614718457,8.40401129,89.76,89.689,27.87407408]
[1772614718458,4.90604048,89.75,89.691,4.45589706]
[1772614718845,4.90604048,89.76,89.691,4.45589706]
[1772614719042,4.90604048,89.75,89.691,4.45589706]
[1772614719355,4.90604048,89.75,89.696,4.82477569]
[1772614719561,4.90604048,89.75,89.699,4.45589706]
[1772614720482,4.90604048,89.74,89.7,15.60416907]
[1772614721155,4.90604048,89.72,89.684,4.45589706]
[1772614721358,4.9933643,89.73,89.684,4.45589706]
[1772614721854,4.90604048,89.74,89.684,4.45589706]
[1772614722039,4.90604048,89.73,89.684,4.45589706]
[1772614722241,39.0063413,89.729,89.684,15.60610793]
[1772614722441,39.0063413,89.729,89.684,4.45589706]
[1772614722646,0.08732382,89.728,89.669,4.45589706]